bitfinex/quotes_BTCUSD_20250723
["timestamp","ask_amount","ask_price","bid_price","bid_amount"]
[1753272016312,7.18668118,118670.0,118660.0,1e-08]
[1753272016518,7.20247225,118670.0,118660.0,1e-08]
[1753272016738,6.77374402,118670.0,118660.0,1e-08]
[1753272016946,7.22192996,118670.0,118660.0,1e-08]
[1753272017157,7.22092996,118670.0,118660.0,1e-08]
[1753272017870,7.22192996,118670.0,118660.0,1e-08]
[1753272019868,6.75230402,118670.0,118660.0,1e-08]
[1753272020096,7.07196996,118670.0,118660.0,1e-08]
[1753272020307,7.07195054,118670.0,118660.0,1e-08]
[1753272020721,7.10366813,118670.0,118660.0,1e-08]
[1753272020921,6.78400219,118670.0,118660.0,1e-08]
[1753272021133,7.10366813,118670.0,118660.0,1e-08]
[1753272021375,6.78400219,118670.0,118660.0,1e-08]
[1753272021595,7.10366813,118670.0,118660.0,1e-08]
[1753272025455,7.28101283,118670.0,118660.0,1e-08]
[1753272028611,2.23099694,118670.0,118660.0,1e-08]
[1753272029047,7.28099694,118670.0,118660.0,1e-08]
[1753272030093,0.78541879,118650.0,118640.0,0.44807891]
[1753272030327,5.92133609,118650.0,118640.0,0.44807891]
[1753272030544,0.17700591,118640.0,118630.0,0.48306594]
[1753272030766,5.31292321,118640.0,118630.0,0.46776594]
[1753272030980,0.26292321,118640.0,118630.0,0.46987594]
[1753272031418,0.26148321,118640.0,118630.0,0.48557594]
[1753272032962,0.34148321,118640.0,118630.0,0.48557594]
[1753272035336,0.34148321,118640.0,118630.0,0.16591]
[1753272035545,0.34148321,118640.0,118630.0,0.48557594]
[1753272035795,0.34148321,118640.0,118630.0,0.16591]
[1753272036032,0.34148321,118640.0,118630.0,0.48557594]
[1753272036744,0.34148321,118640.0,118630.0,0.16591]
[1753272036972,0.34148321,118640.0,118630.0,0.48557594]
[1753272037430,0.34148321,118640.0,118630.0,0.46987594]
[1753272038750,0.34148321,118640.0,118630.0,0.48547594]
[1753272038977,0.34148321,118640.0,118630.0,0.16581]
[1753272039187,0.34148321,118640.0,118630.0,0.48547594]
[1753272039620,0.34148321,118640.0,118630.0,0.16581]
[1753272039832,0.34148321,118640.0,118630.0,0.48547594]
[1753272040472,0.34148321,118640.0,118630.0,0.16581]
[1753272040702,0.34148321,118640.0,118630.0,0.48547594]
[1753272041809,0.34148321,118640.0,118630.0,0.16581]
[1753272041990,0.34148321,118640.0,118630.0,0.48547594]
[1753272042447,0.34292321,118640.0,118630.0,0.46987594]
[1753272042652,0.34292321,118640.0,118630.0,0.45337594]
[1753272043582,0.34292321,118640.0,118630.0,0.13371]
[1753272043778,0.34292321,118640.0,118630.0,0.45337594]
[1753272046812,0.34292321,118640.0,118630.0,0.46877594]
[1753272047547,0.34148321,118640.0,118630.0,0.48477594]
[1753272049142,0.34148321,118640.0,118630.0,0.46877594]
[1753272049366,0.34148321,118640.0,118630.0,0.48527594]
[1753272052166,0.49991199,118640.0,118630.0,0.66229692]
[1753272052419,0.23,118640.0,118630.0,1.00725077]
[1753272052622,0.23,118640.0,118630.0,1.09227136]
[1753272053254,0.23842822,118640.0,118630.0,1.09227136]
[1753272053458,0.24685665,118640.0,118630.0,0.77260542]
[1753272053680,0.24685658,118640.0,118630.0,0.71346292]
[1753272053882,0.23,118640.0,118630.0,0.71346292]
[1753272054669,0.23,118640.0,118630.0,0.39379698]
[1753272054854,0.23,118640.0,118630.0,0.71346292]
[1753272055098,0.23,118640.0,118630.0,1.03312886]
[1753272055315,0.23,118640.0,118630.0,0.67803435]
[1753272056195,0.23842829,118640.0,118630.0,0.67803435]
[1753272056437,0.23842822,118640.0,118630.0,0.67803435]
[1753272057261,0.23,118640.0,118630.0,0.67803435]
[1753272057890,0.63842822,118640.0,118630.0,0.67803435]
[1753272058944,0.63,118640.0,118630.0,0.67803435]
[1753272059911,0.63842829,118640.0,118630.0,0.39379698]
[1753272060110,0.63842829,118640.0,118630.0,0.67803435]
[1753272060519,0.64685672,118640.0,118630.0,0.67847435]
[1753272060939,0.65528536,118640.0,118630.0,0.67847435]
[1753272061311,0.64685672,118640.0,118630.0,0.67847435]
[1753272061599,0.63842829,118640.0,118630.0,0.67847435]
[1753272062213,0.64685665,118640.0,118630.0,0.67847435]
[1753272062622,0.66371372,118640.0,118630.0,0.67847435]
[1753272063428,0.67214278,118640.0,118630.0,0.67847435]
[1753272063643,0.83229162,118640.0,118630.0,0.67004528]
[1753272063862,0.8407204,118640.0,118630.0,0.67004528]
[1753272064085,0.65528571,118640.0,118630.0,0.67847435]
[1753272064420,0.65528571,118640.0,118630.0,0.67004528]
[1753272064650,0.83229169,118640.0,118630.0,0.67847435]
[1753272064825,0.66371449,118640.0,118630.0,0.67847435]
[1753272065412,0.65528571,118640.0,118630.0,0.67847435]
[1753272065640,0.8407204,118640.0,118630.0,0.67847435]
[1753272066506,0.6721432,118640.0,118630.0,0.67847435]
[1753272066714,0.8407204,118640.0,118630.0,0.67847435]
[1753272066900,0.84072076,118640.0,118630.0,0.67847435]
[1753272067239,0.6637147,118640.0,118630.0,0.67847435]
[1753272067606,0.8322919,118640.0,118630.0,0.67847435]
[1753272067813,0.6637147,118640.0,118630.0,0.67847435]
[1753272068481,0.8322919,118640.0,118630.0,0.67847435]
[1753272068855,0.6637147,118640.0,118630.0,0.67847435]
[1753272069383,0.8322919,118640.0,118630.0,0.67847435]
[1753272069590,0.84072076,118640.0,118630.0,0.67847435]
[1753272069961,0.84072076,118640.0,118630.0,0.66161614]
[1753272070147,0.83229219,118640.0,118630.0,0.96051614]
[1753272070351,0.83229219,118640.0,118630.0,0.96894535]
[1753272070558,0.64685735,118640.0,118630.0,0.97737399]
[1753272070766,0.81543455,118640.0,118630.0,0.97737399]
[1753272071017,0.82386333,118640.0,118630.0,0.97737399]
[1753272071365,0.65528613,118640.0,118630.0,0.97737399]
[1753272071887,0.64685707,118640.0,118630.0,0.97737399]
[1753272072516,0.65528578,118640.0,118630.0,0.97737399]
[1753272073588,0.66371456,118640.0,118630.0,0.97737399]
[1753272073775,0.26371456,118640.0,118630.0,0.97737399]
[1753272074423,0.25528578,118640.0,118630.0,0.97737399]
[1753272075013,0.24685665,118640.0,118630.0,0.97737399]
[1753272075282,0.25528522,118640.0,118630.0,1.01293419]
[1753272075492,0.26371393,118640.0,118630.0,1.01293419]
[1753272076711,0.25528522,118640.0,118630.0,1.01293419]
[1753272076922,0.26371393,118640.0,118630.0,1.01293419]
[1753272077342,0.26371386,118640.0,118630.0,1.01293419]
[1753272078699,0.26371386,118640.0,118630.0,1.02631001]
[1753272079119,0.27214257,118640.0,118630.0,1.01293419]
[1753272081060,0.26371386,118640.0,118630.0,1.01293419]
[1753272082192,0.27214257,118640.0,118630.0,1.01293419]
[1753272083643,0.26371386,118640.0,118630.0,1.01293419]
[1753272084151,0.27214257,118640.0,118630.0,1.01293419]
[1753272084841,0.25528522,118640.0,118630.0,1.01293419]
[1753272085088,0.26371393,118640.0,118630.0,1.01293419]
[1753272085276,0.25528522,118640.0,118630.0,1.01293419]
[1753272086012,0.25528522,118640.0,118630.0,1.09741149]
[1753272086139,0.26371393,118640.0,118630.0,1.09741149]
[1753272086413,0.25528522,118640.0,118630.0,1.09741149]
[1753272087211,0.23842822,118640.0,118630.0,1.09741149]
[1753272087429,0.25528501,118640.0,118630.0,1.09741149]
[1753272087638,0.25528501,118640.0,118630.0,1.41720906]
[1753272088498,0.25528501,118640.0,118630.0,1.01293419]
[1753272088816,0.26371365,118640.0,118630.0,1.01293419]
[1753272089042,0.25528501,118640.0,118630.0,1.01293419]
[1753272090235,0.26371365,118640.0,118630.0,1.01293419]
[1753272090920,0.24685651,118640.0,118630.0,1.01293419]
[1753272091135,0.25528494,118640.0,118630.0,1.01293419]
[1753272091884,0.26371358,118640.0,118630.0,1.01293419]
[1753272092267,0.26371358,118640.0,118630.0,1.33273176]
[1753272092486,0.26371351,118640.0,118630.0,1.33273176]
[1753272093006,0.25528494,118640.0,118630.0,1.33273176]
[1753272093255,0.25528494,118640.0,118630.0,1.09741149]
[1753272093468,0.26371351,118640.0,118630.0,1.09741149]
[1753272093690,0.25528494,118640.0,118630.0,1.09741149]
[1753272093914,0.25528494,118640.0,118630.0,1.33273176]
[1753272094465,0.24685651,118640.0,118630.0,1.33273176]
[1753272096049,0.25528494,118640.0,118630.0,1.33273176]
[1753272096884,0.24685651,118640.0,118630.0,1.33273176]
[1753272097015,0.25528487,118640.0,118630.0,1.33273176]
[1753272097420,0.25528487,118640.0,118630.0,1.37397942]
[1753272097626,0.2637133,118640.0,118630.0,1.37397942]
[1753272098212,0.24685651,118640.0,118630.0,1.37397942]
[1753272099553,0.25528494,118640.0,118630.0,1.37397942]
[1753272100636,0.24685651,118640.0,118630.0,1.37397942]
[1753272101590,0.24685651,118640.0,118630.0,1.05418185]
[1753272101982,0.25528494,118640.0,118630.0,1.05418185]
[1753272102163,0.25528494,118640.0,118630.0,1.01293419]
[1753272102470,0.26371344,118640.0,118630.0,1.01293419]
[1753272103055,0.26371344,118640.0,118630.0,0.99643419]
[1753272103212,0.43229064,118640.0,118630.0,0.98800512]
[1753272103414,0.27214215,118640.0,118630.0,0.97957584]
[1753272103625,0.26515344,118640.0,118630.0,0.97957584]
[1753272103985,0.26371344,118640.0,118630.0,0.97957584]
[1753272108449,0.25528494,118640.0,118630.0,0.97957584]
[1753272108662,0.25528494,118640.0,118630.0,0.99567584]
[1753272109222,0.26371344,118640.0,118630.0,0.99567584]
[1753272110435,0.27214201,118640.0,118630.0,0.99567584]
[1753272111124,0.25528494,118640.0,118630.0,0.99567584]
[1753272111541,0.26371344,118640.0,118630.0,0.99567584]
[1753272112489,0.25528494,118640.0,118630.0,0.99567584]
[1753272113536,0.26371351,118640.0,118630.0,0.99567584]
[1753272114753,0.27214222,118640.0,118630.0,0.99567584]
[1753272114954,0.26371351,118640.0,118630.0,0.99567584]
[1753272117310,0.27214222,118640.0,118630.0,0.99567584]
[1753272117523,0.26371351,118640.0,118630.0,0.99567584]
[1753272117751,0.27214215,118640.0,118630.0,0.99567584]
[1753272120159,0.25528494,118640.0,118630.0,0.99567584]
[1753272120577,0.26371351,118640.0,118630.0,0.99567584]
[1753272121807,0.25528494,118640.0,118630.0,0.99567584]
[1753272122070,0.25528494,118640.0,118630.0,1.08015314]
[1753272122496,0.25528494,118640.0,118630.0,0.99567584]
[1753272122704,0.26371351,118640.0,118630.0,0.99567584]
[1753272123605,0.25528494,118640.0,118630.0,0.99567584]
[1753272123809,0.24685651,118640.0,118630.0,0.99567584]
[1753272124053,0.23842822,118640.0,118630.0,0.99567584]
[1753272124252,0.63842822,118640.0,118630.0,0.99567584]
[1753272124989,0.63,118640.0,118630.0,0.99567584]
[1753272125208,0.63,118640.0,118630.0,1.08015314]
[1753272125209,0.63842822,118640.0,118630.0,1.08015314]
[1753272126267,0.63842822,118640.0,118630.0,0.95115314]
[1753272126474,0.63842822,118640.0,118630.0,1.07995314]
[1753272127482,0.63842822,118640.0,118630.0,0.99547584]
[1753272127859,0.63,118640.0,118630.0,0.99547584]
[1753272128145,0.63842829,118640.0,118630.0,0.99547584]
[1753272128960,0.63,118640.0,118630.0,0.99547584]
[1753272144678,0.63842829,118640.0,118630.0,0.99547584]
[1753272146065,0.63,118640.0,118630.0,0.99547584]
[1753272146287,0.63842829,118640.0,118630.0,0.99547584]
[1753272147040,0.64685665,118640.0,118630.0,0.99547584]
[1753272147293,0.65672515,118640.0,118630.0,0.97929584]
[1753272147516,0.65672508,118640.0,118630.0,0.96389584]
[1753272147751,0.64829665,118640.0,118630.0,0.96389584]
[1753272149918,0.63986829,118640.0,118630.0,0.97929584]
[1753272150143,0.64685672,118640.0,118630.0,0.97929584]
[1753272150562,0.63842829,118640.0,118630.0,0.97929584]
[1753272151215,0.64685672,118640.0,118630.0,0.97929584]
[1753272152715,0.65528529,118640.0,118630.0,0.96389584]
[1753272152967,0.64829672,118640.0,118630.0,0.96389584]
[1753272153838,0.63986829,118640.0,118630.0,0.96389584]
[1753272154053,0.63144,118640.0,118630.0,0.96389584]
[1753272154496,0.63986829,118640.0,118630.0,0.96389584]
[1753272154724,0.63144,118640.0,118630.0,0.96389584]
[1753272154853,0.64829665,118640.0,118630.0,0.96389584]
[1753272155812,0.64829665,118640.0,118630.0,0.97939584]
[1753272156034,0.23842822,118640.0,118630.0,0.97939584]
[1753272156236,0.24685665,118640.0,118630.0,0.97939584]
[1753272157220,0.25528522,118640.0,118630.0,0.97939584]
[1753272157445,0.24685665,118640.0,118630.0,0.97939584]
[1753272158540,0.24685658,118640.0,118630.0,0.97939584]
[1753272162533,0.25528501,118640.0,118630.0,0.97939584]
[1753272162745,0.26371358,118640.0,118630.0,0.97939584]
[1753272163072,0.27214222,118640.0,118630.0,0.96389584]
[1753272163601,0.26515358,118640.0,118630.0,0.96389584]
[1753272164312,0.25672501,118640.0,118630.0,0.96389584]
[1753272164567,0.26515358,118640.0,118630.0,0.97939584]
[1753272164822,0.27347559,118640.0,118630.0,0.97939584]
[1753272165463,0.27347559,118640.0,118630.0,0.97935338]
[1753272167048,0.26504702,118640.0,118630.0,0.97935338]
[1753272167236,0.25517859,118640.0,118630.0,0.97935338]
[1753272167933,0.26360709,118640.0,118630.0,0.97935338]
[1753272168081,0.18360709,118640.0,118630.0,0.97935338]
[1753272168564,0.17517859,118640.0,118630.0,0.97935338]
[1753272168903,0.18360709,118640.0,118630.0,0.97935338]
[1753272171742,0.17517859,118640.0,118630.0,0.97935338]
[1753272172557,0.16675023,118640.0,118630.0,0.97935338]
[1753272172976,0.1667503,118640.0,118630.0,1.07923068]
[1753272173213,0.16675023,118640.0,118630.0,1.07923068]
[1753272173746,0.17517859,118640.0,118630.0,0.99475338]
[1753272174815,0.16675023,118640.0,118630.0,0.99475338]
[1753272175018,0.17517859,118640.0,118630.0,0.99475338]
[1753272175213,0.16675023,118640.0,118630.0,0.99475338]
[1753272175422,0.17517859,118640.0,118630.0,0.99475338]
[1753272175922,0.17517852,118640.0,118630.0,0.99475338]
[1753272177077,0.16675023,118640.0,118630.0,0.99475338]
[1753272177283,0.17517859,118640.0,118630.0,0.99475338]
[1753272178371,0.16675023,118640.0,118630.0,0.99475338]
[1753272178879,0.552,118650.0,118640.0,0.21131193]
[1753272179084,0.552,118650.0,118640.0,1.01339707]
[1753272179085,0.152,118650.0,118640.0,1.01339707]
[1753272179299,0.16042751,118650.0,118640.0,1.01662707]
[1753272179717,0.16903336,118650.0,118640.0,1.01662707]
[1753272179929,0.17746108,118650.0,118640.0,1.01662707]
[1753272180166,0.17546108,118650.0,118640.0,1.01662707]
[1753272180387,0.17746108,118650.0,118640.0,1.01662707]
[1753272180599,0.17003336,118650.0,118640.0,1.01662707]
[1753272180821,0.17846108,118650.0,118640.0,1.01662707]
[1753272181686,0.17003336,118650.0,118640.0,1.01662707]
[1753272181897,0.17846108,118650.0,118640.0,1.01662707]
[1753272182309,0.18688894,118650.0,118640.0,1.01662707]
[1753272182557,0.17846108,118650.0,118640.0,1.01662707]
[1753272183270,0.18688894,118650.0,118640.0,1.01662707]
[1753272184580,0.17846108,118650.0,118640.0,1.01662707]
[1753272184788,0.17846101,118650.0,118640.0,1.01662707]
[1753272185458,0.1868888,118650.0,118640.0,1.01662707]
[1753272185690,0.17846101,118650.0,118640.0,1.01662707]
[1753272185901,0.17003336,118650.0,118640.0,1.01662707]
[1753272186342,0.16160578,118650.0,118640.0,1.01662707]
[1753272186525,0.17003329,118650.0,118640.0,1.01662707]
[1753272187079,0.17846094,118650.0,118640.0,1.01662707]
[1753272187294,0.18688873,118650.0,118640.0,1.01662707]
[1753272187498,0.19531666,118650.0,118640.0,1.01662707]
[1753272187825,0.59531666,118650.0,118640.0,1.00162707]
[1753272188365,0.58688873,118650.0,118640.0,1.00162707]
[1753272188506,0.59531666,118650.0,118640.0,1.00162707]
[1753272188715,0.58688873,118650.0,118640.0,1.00162707]
[1753272188951,0.59531666,118650.0,118640.0,1.00162707]
[1753272189468,0.19531666,118650.0,118640.0,1.00162707]
[1753272189680,0.20374522,118650.0,118640.0,1.00162707]
[1753272189866,0.77230822,118650.0,118640.0,0.690258]
[1753272190107,0.77230822,118650.0,118640.0,0.673658]
[1753272190626,0.60374522,118650.0,118640.0,0.673658]
[1753272191133,0.77230822,118650.0,118640.0,0.673658]
[1753272191336,0.8330023,118650.0,118640.0,0.31979757]
[1753272191535,0.02528515,118640.0,118630.0,0.51345806]
[1753272191755,0.03521372,118640.0,118630.0,0.64233806]
[1753272191967,0.43521372,118640.0,118630.0,0.64233806]
[1753272192271,0.42678515,118640.0,118630.0,0.64233806]
[1753272192468,0.42678515,118640.0,118630.0,0.64446806]
[1753272192925,0.43521379,118640.0,118630.0,0.96426563]
[1753272193133,0.42778515,118640.0,118630.0,0.96426563]
[1753272193747,0.43621386,118640.0,118630.0,0.96426584]
[1753272194074,0.42778515,118640.0,118630.0,0.96426584]
[1753272194289,0.43621379,118640.0,118630.0,0.96426584]
[1753272194502,0.4446425,118640.0,118630.0,0.66536584]
[1753272196020,0.44464306,118640.0,118630.0,0.66536584]
[1753272196224,0.61322026,118640.0,118630.0,0.66536584]
[1753272196455,0.61322069,118640.0,118630.0,0.65693677]
[1753272196657,0.60479219,118640.0,118630.0,0.66536591]
[1753272196958,0.60479219,118640.0,118630.0,0.67379498]
[1753272197162,0.43621499,118640.0,118630.0,0.67379498]
[1753272197577,0.42778613,118640.0,118630.0,0.67379498]
[1753272199634,0.41935735,118640.0,118630.0,0.67379498]
[1753272200347,0.41935735,118640.0,118630.0,0.97269498]
[1753272203744,0.41935735,118640.0,118630.0,0.98829498]
[1753272203960,0.41935707,118640.0,118630.0,0.98829498]
[1753272204186,0.42778522,118640.0,118630.0,0.98829498]
[1753272204733,0.43621393,118640.0,118630.0,0.98829498]
[1753272205376,0.42778522,118640.0,118630.0,0.98829498]
[1753272206234,0.43621393,118640.0,118630.0,0.98829498]
[1753272207643,0.42778522,118640.0,118630.0,0.98829498]
[1753272208690,0.42628522,118640.0,118630.0,0.98829498]
[1753272209012,0.43471393,118640.0,118630.0,0.98829498]
[1753272209625,0.59636326,118640.0,118630.0,0.76136706]
[1753272209842,0.59636326,118640.0,118630.0,0.92782847]
[1753272210015,0.61216326,118640.0,118630.0,0.92782847]
[1753272210253,0.85431199,118640.0,118630.0,0.74757757]
[1753272210474,0.99588328,118640.0,118630.0,0.74757757]
[1753272210678,0.99682328,118640.0,118630.0,0.74757757]
[1753272211511,0.59682328,118640.0,118630.0,0.74757757]
[1753272211737,0.59682328,118640.0,118630.0,0.74753512]
[1753272212164,0.59682328,118640.0,118630.0,0.44863512]
[1753272213525,0.59588328,118640.0,118630.0,0.44863512]
[1753272214511,0.59588328,118640.0,118630.0,0.12883755]
[1753272214767,0.59588328,118640.0,118630.0,0.44863512]
[1753272217533,0.59588328,118640.0,118630.0,0.61722653]
[1753272217712,0.97978328,118640.0,118630.0,0.62565595]
[1753272218142,0.57978328,118640.0,118630.0,0.62565595]
[1753272218600,0.57978328,118640.0,118630.0,0.62873595]
[1753272218829,0.65978328,118640.0,118630.0,0.62030653]
[1753272219055,0.65978328,118640.0,118630.0,0.6287361]
[1753272219606,0.6513545,118640.0,118630.0,0.45171512]
[1753272222464,0.6355545,118640.0,118630.0,0.62030653]
[1753272223698,0.6355545,118640.0,118630.0,0.46014469]
[1753272223900,0.6355545,118640.0,118630.0,0.45171512]
[1753272224211,0.6355545,118640.0,118630.0,0.62030653]
[1753272224368,0.6355545,118640.0,118630.0,0.6287361]
[1753272225148,0.6355545,118640.0,118630.0,0.63716559]
[1753272225881,0.6355545,118640.0,118630.0,0.64559501]
[1753272226533,0.6355545,118640.0,118630.0,0.65402422]
[1753272226793,0.64248321,118640.0,118630.0,0.67263422]
[1753272227773,0.65091171,118640.0,118630.0,0.67263422]
[1753272228927,0.65091171,118640.0,118630.0,0.66420501]
[1753272229119,0.65091171,118640.0,118630.0,0.67263436]
[1753272230296,0.65091171,118640.0,118630.0,0.68106364]
[1753272230713,0.65091171,118640.0,118630.0,0.68106293]
[1753272230944,0.38942829,118640.0,118630.0,1.01696015]
[1753272231177,0.40628529,118640.0,118630.0,1.01696015]
[1753272231667,0.41471393,118640.0,118630.0,0.69716258]
[1753272232902,0.58329113,118640.0,118630.0,0.69716258]
[1753272233106,0.58329162,118640.0,118630.0,0.66420437]
[1753272233309,0.57486319,118640.0,118630.0,0.66420437]
[1753272233521,0.64398328,118640.0,118630.0,0.31979757]
[1753272233742,0.65898328,118640.0,118630.0,0.44843757]
[1753272233954,0.67468328,118640.0,118630.0,0.44843757]
[1753272234627,0.67468328,118640.0,118630.0,0.31979757]
[1753272235138,0.3354659,118620.0,118610.0,0.016]
[1753272235372,0.3369659,118620.0,118610.0,0.62812255]
[1753272235602,0.3369659,118620.0,118610.0,0.64680255]
[1753272235835,0.3369659,118620.0,118610.0,0.6552334]
[1753272236291,0.3369659,118620.0,118610.0,0.5265934]
[1753272236513,0.3354659,118620.0,118610.0,0.6552334]
[1753272237182,0.3354659,118620.0,118610.0,0.6562334]
[1753272237361,0.3354659,118620.0,118610.0,0.6572334]
[1753272237786,0.7354659,118620.0,118610.0,0.6572334]
[1753272238010,0.7354659,118620.0,118610.0,0.6562334]
[1753272238255,0.7354659,118620.0,118610.0,0.6552334]
[1753272238816,0.7354659,118620.0,118610.0,0.66366417]
[1753272239276,0.72703584,118620.0,118610.0,0.6552334]
[1753272240063,0.71860563,118620.0,118610.0,0.6552334]
[1753272240257,0.71860563,118620.0,118610.0,0.46975179]
[1753272240498,0.31860563,118620.0,118610.0,0.45415179]
[1753272240711,0.32010563,118620.0,118610.0,0.45415179]
[1753272240919,0.72010563,118620.0,118610.0,0.45415179]
[1753272241359,0.98728293,118620.0,118610.0,0.44896179]
[1753272241572,0.58728293,118620.0,118610.0,0.44896179]
[1753272242661,0.58828293,118620.0,118610.0,0.44896179]
[1753272243259,0.58828293,118620.0,118610.0,0.41361368]
[1753272243682,0.58928293,118620.0,118610.0,0.41357122]
[1753272244406,5.63928293,118620.0,118610.0,0.12912176]
[1753272244612,5.63928293,118620.0,118610.0,0.41357122]
[1753272244833,5.64022293,118620.0,118610.0,0.41357122]
[1753272245038,5.63928293,118620.0,118610.0,0.41357122]
[1753272247044,5.64022293,118620.0,118610.0,0.41357122]
[1753272247275,5.64022293,118620.0,118610.0,0.12912176]
[1753272247498,5.64022293,118620.0,118610.0,0.41357122]
[1753272248724,0.59022293,118620.0,118610.0,0.41357122]
[1753272249216,5.64022293,118620.0,118610.0,0.41357122]
[1753272249413,5.63928293,118620.0,118610.0,0.41357122]
[1753272249770,5.64022293,118620.0,118610.0,0.41357122]
[1753272251272,5.64022293,118620.0,118610.0,0.12912176]
[1753272251482,5.76886293,118620.0,118610.0,0.12912176]
[1753272252568,5.76686293,118620.0,118610.0,0.12912176]
[1753272252806,5.76986293,118620.0,118610.0,0.41357122]
[1753272254147,5.76986293,118620.0,118610.0,0.12912176]
[1753272254345,5.76986293,118620.0,118610.0,0.00048176]
[1753272255391,5.76986293,118620.0,118610.0,0.28493122]
[1753272257053,5.76896293,118620.0,118610.0,0.28493122]
[1753272257264,5.73626293,118620.0,118610.0,0.28493122]
[1753272257467,5.73626293,118620.0,118610.0,0.28799122]
[1753272259130,5.73626293,118620.0,118610.0,0.28493122]
[1753272261499,5.73626293,118620.0,118610.0,0.28799122]
[1753272262771,5.73626293,118620.0,118610.0,0.28493122]
[1753272263487,5.73626293,118620.0,118610.0,0.30053122]
[1753272263693,5.73626293,118620.0,118610.0,0.30359122]
[1753272264142,5.73626293,118620.0,118610.0,0.28799122]
[1753272265899,0.55758293,118620.0,118610.0,0.00354176]
[1753272266068,0.68622293,118620.0,118610.0,0.28799122]
[1753272266272,5.73622293,118620.0,118610.0,0.28799122]
[1753272267300,5.73622293,118620.0,118610.0,0.32354203]
[1753272267464,5.73622293,118620.0,118610.0,0.32048203]
[1753272267898,5.60758293,118620.0,118610.0,0.32048203]
[1753272270037,5.60608293,118620.0,118610.0,0.6456723]
[1753272270256,5.60608293,118620.0,118610.0,0.34157203]
[1753272271133,5.60758293,118620.0,118610.0,0.34157203]
[1753272272277,5.60758293,118620.0,118610.0,0.32364203]
[1753272272486,5.60758293,118620.0,118610.0,0.32048203]
[1753272273710,5.67118453,118620.0,118610.0,0.44912203]
[1753272274136,5.67024453,118620.0,118610.0,0.44912203]
[1753272274369,5.60758293,118620.0,118610.0,0.44912203]
[1753272275116,5.60758293,118620.0,118610.0,0.44907955]
[1753272277098,0.55758293,118620.0,118610.0,0.44907955]
[1753272277282,5.60758293,118620.0,118610.0,0.44907955]
[1753272280883,5.68758293,118620.0,118610.0,0.44907955]
[1753272281500,5.68758293,118620.0,118610.0,0.48656955]
[1753272282974,5.68758293,118620.0,118610.0,0.46813955]
[1753272285920,5.68758293,118620.0,118610.0,0.33633955]
[1753272286143,6.58258521,118620.0,118610.0,0.00043928]
[1753272286351,6.23524024,118620.0,118610.0,0.32043955]
[1753272286568,6.20373864,118620.0,118610.0,0.32043955]
[1753272286837,6.18663864,118620.0,118610.0,0.32043955]
[1753272287052,6.17103864,118620.0,118610.0,0.32043955]
[1753272287280,6.17103864,118620.0,118610.0,0.00043928]
[1753272287281,6.16903864,118620.0,118610.0,0.00043928]
[1753272287515,6.20443864,118620.0,118610.0,0.44907955]
[1753272287767,6.04439864,118620.0,118610.0,0.44907955]
[1753272288017,6.04439864,118620.0,118610.0,0.46763955]
[1753272288229,6.04289864,118620.0,118610.0,0.48586955]
[1753272288436,6.02708293,118620.0,118610.0,0.48586955]
[1753272288645,0.97708293,118620.0,118610.0,0.80586982]
[1753272288833,6.03008293,118620.0,118610.0,0.48586955]
[1753272289239,6.04589289,118620.0,118610.0,0.48586955]
[1753272292081,5.70589289,118620.0,118610.0,0.35722955]
[1753272292288,0.66537312,118620.0,118610.0,0.98292058]
[1753272292468,0.66537312,118620.0,118610.0,0.82273173]
[1753272292680,0.66537312,118620.0,118610.0,0.81430081]
[1753272292882,0.66237312,118620.0,118610.0,0.82273173]
[1753272293050,0.66237312,118620.0,118610.0,0.99135157]
[1753272293251,0.66037312,118620.0,118610.0,0.64413308]
[1753272293439,0.66037312,118620.0,118610.0,0.65256371]
[1753272293632,0.66237312,118620.0,118610.0,0.65256371]
[1753272293844,0.66237312,118620.0,118610.0,0.64413308]
[1753272294891,0.51237312,118620.0,118610.0,0.65256371]
[1753272295344,0.25085942,118620.0,118610.0,0.6609942]
[1753272295546,0.234,118620.0,118610.0,0.39409187]
[1753272295766,0.53128768,118620.0,118610.0,0.45018063]
[1753272295997,0.50394298,118620.0,118610.0,0.45018063]
[1753272296423,0.49994298,118620.0,118610.0,0.45018063]
[1753272296658,0.50194298,118620.0,118610.0,0.45018063]
[1753272299698,0.50194298,118620.0,118610.0,0.62723146]
[1753272300102,0.90194298,118620.0,118610.0,0.63566238]
[1753272300547,0.89351306,118620.0,118610.0,0.63566238]
[1753272301865,0.88508293,118620.0,118610.0,0.45018063]
[1753272303819,0.48508293,118620.0,118610.0,0.45018063]
[1753272307668,0.48508293,118620.0,118610.0,0.63566224]
[1753272307887,0.89351306,118620.0,118610.0,0.63566224]
[1753272308090,0.89351306,118620.0,118610.0,0.64409287]
[1753272308207,0.73333735,118620.0,118610.0,0.66095392]
[1753272308411,0.74176756,118620.0,118610.0,0.66095392]
[1753272308844,0.73333735,118620.0,118610.0,0.66095392]
[1753272309476,0.74176756,118620.0,118610.0,0.66095392]
[1753272310719,0.73333735,118620.0,118610.0,0.66095392]
[1753272311212,0.74176699,118620.0,118610.0,0.66095392]
[1753272311441,0.232,118620.0,118610.0,0.67840294]
[1753272311671,0.232,118620.0,118610.0,0.96275429]
[1753272311886,0.232,118620.0,118610.0,0.67840294]
[1753272312554,0.23,118620.0,118610.0,0.67840294]
[1753272312780,0.23,118620.0,118610.0,0.97730294]
[1753272313570,0.08,118620.0,118610.0,0.97730294]
[1753272313782,0.42528515,118640.0,118630.0,0.22557925]
[1753272314007,0.65976245,118640.0,118630.0,0.6436806]
[1753272314420,0.55842829,118640.0,118630.0,0.6436806]
[1753272314996,0.56042829,118640.0,118630.0,0.6436806]
[1753272315173,0.56042836,118640.0,118630.0,0.6436806]
[1753272315507,0.56242836,118640.0,118630.0,0.92803195]
[1753272315695,0.56242829,118640.0,118630.0,0.92803195]
[1753272316041,0.57085665,118640.0,118630.0,0.92803195]
[1753272316678,0.56242829,118640.0,118630.0,0.92803195]
[1753272317191,0.56242829,118640.0,118630.0,0.6436806]
[1753272317731,0.554,118640.0,118630.0,0.6436806]
[1753272317958,0.554,118640.0,118630.0,0.92803195]
[1753272319017,0.634,118640.0,118630.0,0.92803195]
[1753272319242,0.64242822,118640.0,118630.0,0.92803195]
[1753272319637,0.65085658,118640.0,118630.0,0.92803195]
[1753272320061,0.64242822,118640.0,118630.0,0.92803195]
[1753272321097,0.634,118640.0,118630.0,0.92803195]
[1753272321940,0.64242829,118640.0,118630.0,0.92803195]
[1753272322687,0.64042829,118640.0,118630.0,0.92803195]
[1753272322891,0.63842829,118640.0,118630.0,0.92803195]
[1753272323315,0.23842829,118640.0,118630.0,0.92803195]
[1753272323557,0.23942829,118640.0,118630.0,0.92803195]
[1753272323954,0.23942822,118640.0,118630.0,0.6436806]
[1753272324181,0.24042822,118640.0,118630.0,0.6436806]
[1753272324593,0.232,118640.0,118630.0,0.66112962]
[1753272324703,0.232,118640.0,118630.0,0.94548097]
[1753272325109,0.232,118640.0,118630.0,0.66112962]
[1753272325327,0.24042822,118640.0,118630.0,0.66112962]
[1753272325550,0.232,118640.0,118630.0,0.66112962]